Cogmind - Beta 13 *** ADVENTURER MODE // 2024.04.07 @ 12:55:34 Player: sunghail Result: Destroyed by Y-45 Defender with Heavy Assault Rifle Performance ------------- Evolutions (0) 0 Regions Visited (2) 400 Robots Destroyed (12) 60 Value Destroyed (172) 172 Prototype IDs (0) 0 Alien Tech Used (0) 0 Bonus (0) 0 TOTAL SCORE: 632 Bonus ------- None Cogmind --------- Core Integrity 0/250 Matter 300/300 Energy 87/100 System Corruption 0% Temperature Cool (0) Movement Core (50) Location -10/Mines Parts ------- > --- POWER (1) -------- (None) > --- PROPULSION (2) --- (None) > --- UTILITY (2) ------ (None) > --- WEAPON (2) ------- (None) > --- INVENTORY (5) ---- Ion Engine Aluminum Leg Aluminum Leg Signal Interpreter Medium Laser Peak State ------------ > --- POWER ------------ Light Ion Engine > --- PROPULSION ------- Aluminum Leg Aluminum Leg > --- UTILITY ---------- Small Storage Unit Small Storage Unit > --- WEAPON ----------- Small Laser Assault Rifle > --- INVENTORY -------- Ion Engine Light Ion Engine Aluminum Leg Aluminum Leg Aluminum Leg Aluminum Leg Medium Laser Light Assault Rifle [Rating: 7] Favorites ----------- Power Light Ion Engine Engine Light Ion Engine Propulsion Aluminum Leg Leg Aluminum Leg Utility Small Storage Unit Storage Small Storage Unit Weapon Assault Rifle Energy Gun Small Laser Ballistic Gun Assault Rifle Build | -11 -10 -10 ------- Run | Yrd Mat Min Slots Evolved . | . . . Power . | . . . Propulsion . | . . . Utility . | . . . Weapon . | . . . Parts Attached 8 | 4 4 . Power 1 | 1 . . Engine 1 | 1 . . Core . | . . . Reactor . | . . . Propulsion 2 | 2 . . Treads . | . . . Leg 2 | 2 . . Wheel . | . . . Hover . | . . . Flight . | . . . Utility 3 | . 3 . Device . | . . . Storage 3 | . 3 . Processor . | . . . Hackware . | . . . Protection . | . . . Artifact . | . . . Weapon 2 | 1 1 . Energy Gun 1 | . 1 . Energy Cannon . | . . . Ballistic Gun 1 | 1 . . Ballistic Cannon . | . . . Launcher . | . . . Special Weapon . | . . . Impact Weapon . | . . . Slashing Weapon . | . . . Piercing Weapon . | . . . Special Melee Weapon . | . . . Unidentified Prototypes . | . . . Parts Lost 5 | . . 5 Power 1 | . . 1 Propulsion 2 | . . 2 Utility . | . . . Weapon 2 | . . 2 Highest Loss Streak 5 | . . 5 To Critical Strikes . | . . . Average Slot Usage (%) 96 | . 96 96 Engine 13 | . 14 13 Leg 27 | . 28 27 Storage 26 | . 26 28 Energy Gun 12 | . 12 13 Ballistic Gun 13 | . 14 13 Naked Turns 1 | . . 1 Heaviest Build 31 | 5 31 31 Greatest Support 20 | 20 20 20 Greatest Overweight (x) 8 | . 1 8 Average Overweight (x) . | . . 1 Largest Inventory Capacity 15 | 5 15 15 Average Capacity 12 | 5 13 14 Most Carried 9 | 5 8 9 Average Carried 7 | 4 7 8 Final Capacity 15 | 5 15 5 Final Carried 8 | 5 8 5 Class Distribution -------------------- 100% | Mutant Dominant Class ---------------- Mutant | -10/Materials Mutant | -10/Mines Resources | -11 -10 -10 ----------- Run | Yrd Mat Min Matter Collected 409 | 240 148 21 Remotely . | . . . Salvage Created 258 | 39 111 108 Parts 25 | 2 13 10 Haulers Intercepted . | . . . Recyclers Shooed . | . . . Parts Field Recycled . | . . . Retrieved Matter . | . . . Parts Self-Destructed . | . . . Prevented . | . . . Kills | -11 -10 -10 ------- Run | Yrd Mat Min Combat Hostiles Destroyed 8 | 1 1 6 Guns 8 | 1 1 6 Classes Destroyed 5 | 1 3 1 Builder 1 | . 1 . Tunneler 1 | . 1 . Watcher 2 | . 2 . Swarmer 6 | . . 6 Grunt 2 | 1 1 . Best Kill Streak 3 | 1 1 3 Combat Bots Only 3 | 1 1 3 Max Kills in Single Turn 1 | 1 1 1 Gunslinging . | . . . Exploded . | . . . Melee . | . . . Uniques/NPCs Destroyed . | . . . Combat | -11 -10 -10 -------- Run | Yrd Mat Min Hostile Shots Fired 82 | 2 10 70 Missed 27 | 2 3 22 Damage Taken 789 | . 59 730 Core 253 | . 26 227 Absorbed by Shields . | . . . Ignored by Resistances 226 | . 18 208 Core Remaining (%) 100 | 100 . . Volleys Fired 46 | 2 34 10 Largest 2 | 1 2 2 Hottest 60 | 20 60 60 Shots Fired 73 | 2 54 17 Gun 73 | 2 54 17 Cannon . | . . . Launcher . | . . . Special . | . . . Kinetic 43 | 2 34 7 Thermal 30 | . 20 10 Explosive . | . . . Electromagnetic . | . . . Robot Hit Streak 7 | 1 7 6 Robot Miss Streak 5 | 1 5 1 Penetration Max . | . . . Secondary Targets 1 | . . 1 Max Gunslinging Chain 1 | . . 1 Shots Hit Robots 42 | 1 30 11 Core Hits 16 | 1 9 6 Critical Kills . | . . . Critical Parts Destroyed . | . . . Critical Strikes . | . . . Melee Attacks . | . . . Impact . | . . . Slashing . | . . . Piercing . | . . . Sneak Attacks . | . . . Combat Hostiles . | . . . Follow-up Attacks . | . . . Damage Inflicted 507 | 15 373 119 Guns 507 | 15 373 119 Cannons . | . . . Explosions . | . . . Melee . | . . . Ramming . | . . . Kinetic 314 | 15 263 36 Thermal 193 | . 110 83 Explosive . | . . . Electromagnetic . | . . . Impact . | . . . Slashing . | . . . Piercing . | . . . Highest Corruption . | . . . Average Corruption . | . . . Corruption Purged . | . . . Corruption Blocked . | . . . Overload Shots . | . . . Overflow Damage . | . . . Projectiles . | . . . Explosions . | . . . Melee . | . . . Knockbacks . | . . . Impact . | . . . Kinetic . | . . . Secondary . | . . . Self-Inflicted Damage . | . . . Shots . | . . . Rammed . | . . . Targets Rammed . | . . . Kicked . | . . . Crushed . | . . . Highest Temperature 3 | . . 3 Average Temperature 2 | . . 2 Received Heat Transfer 136 | . 42 94 Siege Activations . | . . . Robots Corrupted . | . . . Combat Hostiles . | . . . Parts Fried . | . . . Impact Corruptions . | . . . Robots Melted . | . . . Combat Hostiles . | . . . Parts Melted . | . . . Heat Transferred 450 | . 250 200 Parts Sabotaged . | . . . Parts Stolen . | . . . Parts Stripped . | . . . Power Chain Reactions . | . . . Alert | -11 -10 -10 ------- Run | Yrd Mat Min Peak Influence 175 | 20 76 175 Initial 11 | . 11 . Average 28 | 11 19 119 Maximum Alert Level . | . . . Low Security (%) 100 | 100 100 100 Level 1 . | . . . Level 2 . | . . . Level 3 . | . . . Level 4 . | . . . Level 5 . | . . . High Security . | . . . Max Security . | . . . Squads Dispatched 1 | . 1 . Investigation 1 | . 1 . Extermination . | . . . Reinforcement . | . . . Assault . | . . . Garrison . | . . . Intercept . | . . . Searches Triggered . | . . . Construction Impeded . | . . . Haulers Reinforced . | . . . Active Scanning Responses . | . . . Cargo Convoy Interrupts . | . . . Stealth | -11 -10 -10 --------- Run | Yrd Mat Min Distress Signals 1 | . . 1 Communications Jammed . | . . . Distress Signals . | . . . Times Spotted 50 | 1 23 26 Peak Tracking Total 12 | 1 3 12 Tactical Retreats 2 | . . 2 Traps | -11 -10 -10 ------- Run | Yrd Mat Min Traps Triggered 1 | . 1 . Indirectly . | . . . Trap Hack Attempts . | . . . Triggered . | . . . Disarmed . | . . . Reprogrammed . | . . . Reused . | . . . Traps Extracted . | . . . Installed . | . . . Triggered . | . . . Machines | -11 -10 -10 ---------- Run | Yrd Mat Min Machines Disabled . | . . . Max in Single Turn . | . . . Machines Repaired . | . . . Machines Dismantled . | . . . Machines Sabotaged . | . . . Overloaded Fab Kills . | . . . Hacking | -11 -10 -10 --------- Run | Yrd Mat Min Machines Accessed 7 | . 7 . Terminals 6 | . 6 . Fabricators . | . . . Repair Stations 1 | . 1 . Recycling Units . | . . . Scanalyzers . | . . . Garrison Access . | . . . Total Hacks 13 | . 13 . Successful 9 | . 9 . Failed 4 | . 4 . Catastrophic 1 | . 1 . Database Lockouts . | . . . Manual 6 | . 6 . Terminals 11 | . 11 . Fabricators . | . . . Repair Stations 2 | . 2 . Recycling Units . | . . . Scanalyzers . | . . . Garrison Access . | . . . Terminal Hacks 8 | . 8 . Record 5 | . 5 . Patrol Status 1 | . 1 . Registered Components 1 | . 1 . Zone Layout 1 | . 1 . Fabricator Hacks . | . . . Repair Station Hacks 1 | . 1 . Scan Component 1 | . 1 . Recycling Unit Hacks . | . . . Scanalyzer . | . . . Garrison Access Hacks . | . . . Unauthorized Hacks . | . . . Terminals . | . . . Fabricators . | . . . Repair Stations . | . . . Recycling Units . | . . . Scanalyzers . | . . . Garrison Access . | . . . Data Cores Recovered . | . . . Used . | . . . Hacking Detections 6 | . 6 . Full Trace Events . | . . . Feedback Events . | . . . Feedback Blocked . | . . . Robot Schematics Acquired . | . . . Robots Built . | . . . Authchips . | . . . Time . | . . . Total Robot Build Rating . | . . . Part Schematics Acquired . | . . . Parts Built . | . . . Authchips . | . . . Time . | . . . Total Part Build Rating . | . . . Parts Repaired . | . . . Time . | . . . Parts Recycled . | . . . Recycled Matter . | . . . Retrieved Matter . | . . . Retrieved Components . | . . . Parts Scanalyzed . | . . . Part Schematics Acquired . | . . . Parts Damaged . | . . . Bothacking | -11 -10 -10 ------------ Run | Yrd Mat Min Used RIF Installer . | . . . Robots Hacked . | . . . Non-combat . | . . . Combat . | . . . Robot Hacks Applied . | . . . Relay Couplers Released . | . . . Fabnet Peak Effective % . | . . . Robots Rewired . | . . . Allies Hacked . | . . . Hacks Repelled . | . . . Allies | -11 -10 -10 -------- Run | Yrd Mat Min Total Allies 2 | . . 2 Largest Group 2 | . . 2 Highest-Rated Group 43 | . . 43 Highest-Rated Ally 31 | . . 31 Total Orders . | . . . Ally Attacks 4 | . . 4 Total Damage 43 | . . 43 Kills . | . . . Allies Corrupted . | . . . Allies Melted . | . . . Intel | -11 -10 -10 ------- Run | Yrd Mat Min Robot Analysis Total . | . . . Derelict Logs Recovered 1 | . . 1 Drone Launches . | . . . Drone Recoveries . | . . . Exploration | -11 -10 -10 ------------- Run | Yrd Mat Min Turns Passed 3066 | 165 2623 278 Spaces Moved 1631 | 86 1415 130 Core 20 | 16 . 4 Treads . | . . . Legs 1611 | 70 1415 126 Wheels . | . . . Hover . | . . . Flight . | . . . Fastest Speed 50 | 50 120 50 Average Speed 166 | 106 168 189 Slowest Speed 450 | 120 190 450 Overloaded Moves . | . . . Propulsion Burnouts . | . . . Robots Hopped . | . . . Cave-ins Triggered . | . . . Exploration Rate (%) 46 | 9 101 30 Regions Visited 2 Branch Regions 1 Pre-discovered Areas . | . . . Known Exits Taken . | . . . Unknown Exits Taken 2 | 1 1 . Scrap Searched . | . . . Spaces Dug . | . . . Terrain Destroyed . | . . . Melee . | . . . Projectile . | . . . AOE . | . . . Terrain Rammed . | . . . Walls Destroyed . | . . . Machines Disabled . | . . . Actions | -11 -10 -10 --------- Run | Yrd Mat Min Total 1908 | 157 1605 146 Wait 198 | 55 140 3 Move 1629 | 85 1414 130 Hop . | . . . Pick Up 20 | 10 9 1 Fast Attach 1 | . 1 . Attach 6 | 4 2 . Detach . | . . . Swap 1 | . 1 . Drop 7 | 1 4 2 Fire 46 | 2 34 10 Melee . | . . . Ram . | . . . Kick . | . . . Crush . | . . . Escape Stasis . | . . . Rewire . | . . . Trap . | . . . Miscellaneous . | . . . Route ------- -11/Scrapyard -10/Materials (discovered 6 exits: [*Mat x3] / [*Min x2] / [*Sub]) -10/Mines (discovered 1 exit: [*Mat]) History --------- Turn | Location | Event 2 | -11/Scrapyard | Met Revision 17 66 | -11/Scrapyard | Discovered new exit (range 8) 166 | -11/Scrapyard | Entered Materials 305 | -10/Materials | Build established: Mutant 327 | -10/Materials | Discovered new exit (range 9) 392 | -10/Materials | Discovered new exit (range 12) 675 | -10/Materials | Discovered new exit (range 3) 828 | -10/Materials | Discovered new exit (range 9) 1016 | -10/Materials | Discovered new exit (range 9) 1651 | -10/Materials | Discovered new exit (range 10) 2789 | -10/Materials | Entered Mines 2812 | -10/Mines | Met a Derelict bent on vengeance 2915 | -10/Mines | Discovered new exit (range 5) 3019 | -10/Mines | Assembled infested the area 3020 | -10/Mines | Learned Materials emergency access door positions 3024 | -10/Mines | Assisted by a Guerilla fighting off Assembled 3060 | -10/Mines | Core integrity fell below 50% 3067 | -10/Mines | Destroyed by Y-45 Defender with Heavy Assault Rifle Last Messages --------------- The unstable cave ceiling collapses. 89-ML2(z) destroyed. Sml. Laser destroyed. PE-Z2O(g) destroyed. R-06 Scavenger destroyed. The unstable cave ceiling collapses. Lgt. Angular Momentum Engine crushed. U-05 Engineer lays Concrete. Assault Rifle destroyed. Aluminum Leg destroyed. Critical hit (Burn: +37). U-05 Engineer lays Concrete. Aluminum Leg destroyed. U-05 Engineer lays Concrete. U-05 Engineer builds a Wall. as-47815 destroyed. U-05 Engineer builds a Wall. Dropped Sml. Storage Unit. Dropped Lrg. Storage Unit. as-96833 destroyed. Map ----- +----------------------------------------------------+ | ?????????????????????????????????????????????? | | ?????????????????????????????????????????????? | | ?????????????????????????????????????????????? | | ?????????????????????????????????????????????? | | ?????????????????????????????????????????????? | | ?????????????????????????????????????????????? | | ?????????????????????????????????????????????? | | ?????????????????????????????????????????????? | | ?????????????????????????????????????????????? | | ?????????????????????????????????????????????? | | ?????????????????????????????????????????????? | | ?????????????????????????????????????????????? | | ?????????????????????????????????????????????? | | ?????????????????????????????????????????????? | | ?????????????????????????????????????????????? | | ?????????????????????????????????????????????? | | ?????????????????????????????????????????????? | | ?????????????????????????????????????????????? | | ?????????????????????????????????????????????? | | ????????????????????#######??????????????????? | | ???????????????????## # #??????????????????? | | ??????????????????? #??????????????????? | | ???????????????????? ##?????????????????? | | ??????????????????### %[ #?????????????????? | | ????????????????### % #?????????????????? | | ????????????????# @ #?????????????????? | | ????????????????# ##??#### #????????? | | ????????????????# != ### #????????? | | ????????????????# !=![ #????????????? | | ????????????????# # [ #????????????? | | ??????????????? # #????????????? | | ????????????? #?## # ##????????????? | | ????????????## ???# dd #?????????????? | | ?????????????##????# Y ####++####????? | | ???????????????????## Y #????? | | ????????????????????## [ ???? | | ?????????????????????## #### ?????? | | ??????????????????????## # #?????????? | | ??????????????????????? ?????????? | | ???????????????????????## # #????????? | | ????????????????# ###### #???????? | | ????????????????# " #%= ???????? | | ????????????????########%"## ###??????? | | ???????????????????????#" # ! #???????? | | ???????????????????????# ### #????????? | | ???????????????????????# #??# ???????? | | ???????????????????##### #???# ## ??????? | | ??????????????????## #????? ??##??#?????? | | ??????????????????# ######??????????????????? | | ?????????????????## #???????####??#??????##?? | +----------------------------------------------------+ Best States ------------- Heat Dissipation 25 Energy Generation 10 Energy Capacity 125 Matter Stores 300 Matter Capacity 300 Sight Range 16 Terrain Scan Density 10 Resistance: KI 20 Resistance: TH 20 Resistance: EX 20 Resistance: EM 20 Resistance: I 20 Resistance: S 20 Resistance: P 20 Evasion (%) 55 Offensive Hacking 10 Item Schematics ----------------- None Robot Schematics ------------------ None Fabricated ------------ Nothing Alien Tech Used ----------------- None Achievements -------------- Storm Trooper Challenges ------------ None Game ------ Seed PotentialSurgeCutter Manual? 0 Play Time 00:48:39 Cumulative 2.8 hours Start 2024.04.07 @ 12:03:04 End 2024.04.07 @ 12:55:34 Sessions 1 Manual Loads 0 Difficulty Adventurer Special Mode None Game No. 2 Rogue 0 Adventurer 2 Explorer 0 Win Type - Total 0 Types 0/0/0/0/0/0/0/0/0 Lore% 5 Gallery% 2 Achievement% 5 Wizard Run 0 Options --------- Layout 1 ASCII 0 Keyboard 0 Movement Mouse Keybinds 0 Fullscreen 1 Font 48/Smallcaps Map View 50x35 Zoom Use 0% Tactical HUD 0 Map Filters NONE Filters NONE Steam 1 RUN: a538b81b-ef92-4404-94bc-587381b35b1c